[Event "Titled Tuesday Blitz June 20 Early 2023"]
[White "Aradhya, Garg"]
[Black "chess123456s"]
[WhiteFideId "25006746"]
[WhiteElo "2263"]
[BlackElo "2531"]
[Result "1-0"]
[Round "6"]
[TimeControl "180+2"]
[Date "2023.06.20"]
[WhiteClock "0:00:48"]
[BlackClock "0:00:04"]
[Board "66"]

1. d4 {[%clk 0:03:00]}  d5 {[%clk 0:03:00]} 2. c4 {[%clk 0:03:01]}  c6 {[%clk 0:03:00]} 3. Nc3 {[%clk 0:03:00]}  Nf6 {[%clk 0:03:00]} 4. Nf3 {[%clk 0:03:01]}  e6 {[%clk 0:03:00]} 5. e3 {[%clk 0:03:01]}  Nbd7 {[%clk 0:03:00]} 6. Be2 {[%clk 0:03:01]}  Bd6 {[%clk 0:03:00]} 7. O-O {[%clk 0:03:02]}  O-O {[%clk 0:03:00]} 8. b3 {[%clk 0:03:01]}  b6 {[%clk 0:03:01]} 9. Bb2 {[%clk 0:03:01]}  Bb7 {[%clk 0:03:01]} 10. Qc2 {[%clk 0:03:01]}  Qe7 {[%clk 0:03:01]} 11. Rad1 {[%clk 0:02:59]}  Rad8 {[%clk 0:03:00]} 12. Rfe1 {[%clk 0:02:59]}  Rfe8 {[%clk 0:03:01]} 13. Bf1 {[%clk 0:03:00]}  c5 {[%clk 0:02:59]} 14. cxd5 {[%clk 0:02:58]}  exd5 {[%clk 0:02:59]} 15. g3 {[%clk 0:02:57]}  a6 {[%clk 0:02:30]} 16. Bg2 {[%clk 0:02:54]}  Bc7 {[%clk 0:02:16]} 17. Nh4 {[%clk 0:02:45]}  Qe6 {[%clk 0:01:57]} 18. dxc5 {[%clk 0:02:34]}  bxc5 {[%clk 0:01:54]} 19. Na4 {[%clk 0:02:33]}  Ne4 {[%clk 0:01:12]} 20. Bxe4 {[%clk 0:02:09]}  Qxe4 {[%clk 0:01:07]} 21. Qxe4 {[%clk 0:02:06]}  Rxe4 {[%clk 0:01:07]} 22. Rc1 {[%clk 0:01:41]}  Bd6 {[%clk 0:01:02]} 23. Ba3 {[%clk 0:01:41]}  Rc8 {[%clk 0:01:00]} 24. Red1 {[%clk 0:01:41]}  Bf8 {[%clk 0:00:56]} 25. Ng2 {[%clk 0:01:37]}  g5 {[%clk 0:00:40]} 26. Nc3 {[%clk 0:01:27]}  Re5 {[%clk 0:00:32]} 27. f4 {[%clk 0:01:27]}  gxf4 {[%clk 0:00:23]} 28. exf4 {[%clk 0:01:28]}  Ree8 {[%clk 0:00:23]} 29. Nxd5 {[%clk 0:01:28]}  Re2 {[%clk 0:00:23]} 30. Nge3 {[%clk 0:01:00]}  Rxa2 {[%clk 0:00:20]} 31. Nc4 {[%clk 0:00:59]}  Bg7 {[%clk 0:00:17]} 32. Ne7+ {[%clk 0:00:57]}  Kf8 {[%clk 0:00:17]} 33. Nxc8 {[%clk 0:00:54]}  Bxc8 {[%clk 0:00:15]} 34. Rd2 {[%clk 0:00:51]}  Bd4+ {[%clk 0:00:14]} 35. Rxd4 {[%clk 0:00:49]}  Rxa3 {[%clk 0:00:04]} 36. Rxd7 {[%clk 0:00:48]} 1-0


[Site "https://www.chess.com"]

[Event "Titled Tuesday Blitz June 20 Early 2023"]
[White "Asavasaetakul, Chawit"]
[Black "Nazari, Arad"]
[WhiteFideId "6204856"]
[BlackFideId "12577324"]
[WhiteElo "1919"]
[BlackElo "2175"]
[Result "1-0"]
[Round "6"]
[TimeControl "180+2"]
[Date "2023.06.20"]
[WhiteClock "0:00:19"]
[BlackClock "0:00:10"]
[Board "67"]

1. e4 {[%clk 0:03:00]}  c5 {[%clk 0:02:59]} 2. c3 {[%clk 0:03:00]}  d5 {[%clk 0:02:59]} 3. exd5 {[%clk 0:02:59]}  Qxd5 {[%clk 0:03:00]} 4. d4 {[%clk 0:03:00]}  g6 {[%clk 0:02:58]} 5. Nf3 {[%clk 0:03:00]}  Bg7 {[%clk 0:02:58]} 6. Be3 {[%clk 0:02:52]}  cxd4 {[%clk 0:02:58]} 7. cxd4 {[%clk 0:02:48]}  Nc6 {[%clk 0:02:56]} 8. Nc3 {[%clk 0:02:48]}  Qa5 {[%clk 0:02:51]} 9. d5 {[%clk 0:02:45]}  Ne5 {[%clk 0:02:39]} 10. Bd4 {[%clk 0:02:22]}  Nxf3+ {[%clk 0:02:34]} 11. gxf3 {[%clk 0:02:23]}  Nf6 {[%clk 0:02:24]} 12. Bb5+ {[%clk 0:02:21]}  Kf8 {[%clk 0:02:25]} 13. O-O {[%clk 0:02:18]}  a6 {[%clk 0:02:12]} 14. Bc4 {[%clk 0:02:17]}  b5 {[%clk 0:02:06]} 15. Bb3 {[%clk 0:02:16]}  Bb7 {[%clk 0:02:06]} 16. a3 {[%clk 0:01:55]}  h5 {[%clk 0:01:50]} 17. Re1 {[%clk 0:01:55]}  Re8 {[%clk 0:01:50]} 18. Bc5 {[%clk 0:01:50]}  Nd7 {[%clk 0:01:43]} 19. Bb4 {[%clk 0:01:35]}  Qb6 {[%clk 0:01:42]} 20. Qe2 {[%clk 0:01:16]}  Bf6 {[%clk 0:01:38]} 21. Ne4 {[%clk 0:01:14]}  Bh4 {[%clk 0:01:20]} 22. Rad1 {[%clk 0:01:07]}  Kg7 {[%clk 0:00:58]} 23. Bc3+ {[%clk 0:00:50]}  Nf6 {[%clk 0:00:58]} 24. Qd2 {[%clk 0:00:46]}  Kh7 {[%clk 0:00:50]} 25. Bd4 {[%clk 0:00:43]}  Nxe4 {[%clk 0:00:42]} 26. Rxe4 {[%clk 0:00:40]}  Qd6 {[%clk 0:00:20]} 27. Rxh4 {[%clk 0:00:39]}  Rhg8 {[%clk 0:00:19]} 28. Qg5 {[%clk 0:00:37]}  Bc8 {[%clk 0:00:17]} 29. Be5 {[%clk 0:00:37]}  Qb6 {[%clk 0:00:16]} 30. d6 {[%clk 0:00:37]}  f6 {[%clk 0:00:14]} 31. Qg3 {[%clk 0:00:20]}  fxe5 {[%clk 0:00:14]} 32. d7 {[%clk 0:00:20]}  Bxd7 {[%clk 0:00:14]} 33. Rxd7 {[%clk 0:00:21]}  Rg7 {[%clk 0:00:14]} 34. Qxe5 {[%clk 0:00:21]}  Rf8 {[%clk 0:00:11]} 35. Rxe7 {[%clk 0:00:20]}  Rxf3 {[%clk 0:00:10]} 36. Qxg7# {[%clk 0:00:19]} 1-0


[Site "https://www.chess.com"]

[Event "Titled Tuesday Blitz June 20 Early 2023"]
[White "Veiga, Jose Francisco R P Neves"]
[Black "Toropov, Pavel"]
[WhiteFideId "1930087"]
[BlackFideId "24129178"]
[WhiteElo "2319"]
[BlackElo "2182"]
[Result "0-1"]
[Round "6"]
[TimeControl "180+2"]
[Date "2023.06.20"]
[WhiteClock "0:00:38"]
[BlackClock "0:00:21"]
[Board "68"]

1. c4 {[%clk 0:02:54]}  c6 {[%clk 0:02:59]} 2. Nc3 {[%clk 0:02:54]}  d5 {[%clk 0:03:00]} 3. d4 {[%clk 0:02:54]}  Nf6 {[%clk 0:03:00]} 4. Nf3 {[%clk 0:02:54]}  dxc4 {[%clk 0:03:01]} 5. a4 {[%clk 0:02:50]}  Bf5 {[%clk 0:03:00]} 6. e3 {[%clk 0:02:48]}  e6 {[%clk 0:02:59]} 7. Bxc4 {[%clk 0:02:48]}  Bb4 {[%clk 0:02:59]} 8. O-O {[%clk 0:02:47]}  O-O {[%clk 0:02:35]} 9. Ne5 {[%clk 0:02:44]}  Nbd7 {[%clk 0:02:33]} 10. Nxd7 {[%clk 0:02:43]}  Qxd7 {[%clk 0:02:33]} 11. f3 {[%clk 0:02:43]}  Bg6 {[%clk 0:02:29]} 12. e4 {[%clk 0:02:42]}  Qe7 {[%clk 0:02:28]} 13. Be3 {[%clk 0:02:42]}  e5 {[%clk 0:02:27]} 14. a5 {[%clk 0:02:29]}  Rfd8 {[%clk 0:02:20]} 15. d5 {[%clk 0:02:26]}  Bxc3 {[%clk 0:02:00]} 16. bxc3 {[%clk 0:02:25]}  cxd5 {[%clk 0:02:00]} 17. exd5 {[%clk 0:02:26]}  Rac8 {[%clk 0:02:00]} 18. Qb3 {[%clk 0:02:26]}  Qc7 {[%clk 0:01:55]} 19. Ra4 {[%clk 0:02:22]}  Nd7 {[%clk 0:01:35]} 20. Bxa7 {[%clk 0:01:59]}  Ra8 {[%clk 0:01:22]} 21. Bb6 {[%clk 0:01:53]}  Nxb6 {[%clk 0:01:22]} 22. axb6 {[%clk 0:01:54]}  Qc5+ {[%clk 0:01:22]} 23. Kh1 {[%clk 0:01:53]}  Rxa4 {[%clk 0:01:21]} 24. Qxa4 {[%clk 0:01:54]}  Qxb6 {[%clk 0:01:21]} 25. Qb4 {[%clk 0:01:43]}  Qxb4 {[%clk 0:01:10]} 26. cxb4 {[%clk 0:01:44]}  Kf8 {[%clk 0:01:07]} 27. f4 {[%clk 0:01:37]}  Rc8 {[%clk 0:01:04]} 28. Bb5 {[%clk 0:01:24]}  exf4 {[%clk 0:01:03]} 29. d6 {[%clk 0:01:25]}  Be4 {[%clk 0:00:28]} 30. h4 {[%clk 0:01:13]}  Bc6 {[%clk 0:00:25]} 31. Bd3 {[%clk 0:00:42]}  Rd8 {[%clk 0:00:24]} 32. Rxf4 {[%clk 0:00:42]}  Rxd6 {[%clk 0:00:23]} 33. Bxh7 {[%clk 0:00:43]}  g6 {[%clk 0:00:23]} 34. h5 {[%clk 0:00:35]}  Kg7 {[%clk 0:00:23]} 35. hxg6 {[%clk 0:00:35]}  fxg6 {[%clk 0:00:23]} 36. Rh4 {[%clk 0:00:36]}  Rd2 {[%clk 0:00:19]} 37. Rh2 {[%clk 0:00:31]}  Rxg2 {[%clk 0:00:18]} 38. Rxg2 {[%clk 0:00:31]}  Kxh7 {[%clk 0:00:18]} 39. Kh2 {[%clk 0:00:31]}  Bxg2 {[%clk 0:00:19]} 40. Kxg2 {[%clk 0:00:32]}  Kg7 {[%clk 0:00:19]} 41. Kf3 {[%clk 0:00:33]}  Kf6 {[%clk 0:00:20]} 42. Ke4 {[%clk 0:00:34]}  g5 {[%clk 0:00:20]} 43. Kd5 {[%clk 0:00:34]}  g4 {[%clk 0:00:20]} 44. Kc5 {[%clk 0:00:35]}  g3 {[%clk 0:00:20]} 45. Kb6 {[%clk 0:00:36]}  g2 {[%clk 0:00:21]} 46. Kxb7 {[%clk 0:00:37]}  g1=Q {[%clk 0:00:21]} 47. b5 {[%clk 0:00:38]}  Ke7 {[%clk 0:00:22]} 48. Kc6 {[%clk 0:00:38]}  Qa7 {[%clk 0:00:20]} 49. b6 {[%clk 0:00:39]}  Qb8 {[%clk 0:00:21]} 50. b7 {[%clk 0:00:38]}  Kd8 {[%clk 0:00:21]} 0-1


[Site "https://www.chess.com"]

[Event "Titled Tuesday Blitz June 20 Early 2023"]
[White "Amilal Munkhdalai"]
[Black "Kuznetsova, Olga"]
[WhiteFideId "4903250"]
[BlackFideId "4191323"]
[WhiteElo "2293"]
[BlackElo "2134"]
[Result "1-0"]
[Round "6"]
[TimeControl "180+2"]
[Date "2023.06.20"]
[WhiteClock "0:00:12"]
[BlackClock "0:00:15"]
[Board "70"]

1. e4 {[%clk 0:02:54]}  e6 {[%clk 0:02:56]} 2. d4 {[%clk 0:02:51]}  d5 {[%clk 0:02:54]} 3. Nd2 {[%clk 0:02:50]}  dxe4 {[%clk 0:02:54]} 4. Nxe4 {[%clk 0:02:50]}  Nd7 {[%clk 0:02:53]} 5. Nf3 {[%clk 0:02:50]}  Ngf6 {[%clk 0:02:54]} 6. Nxf6+ {[%clk 0:02:48]}  Nxf6 {[%clk 0:02:54]} 7. Bd3 {[%clk 0:02:45]}  c5 {[%clk 0:02:54]} 8. Be3 {[%clk 0:02:39]}  Nd5 {[%clk 0:02:47]} 9. Bg5 {[%clk 0:02:38]}  Qa5+ {[%clk 0:02:45]} 10. Bd2 {[%clk 0:02:38]}  Qb6 {[%clk 0:02:46]} 11. c4 {[%clk 0:02:27]}  Nb4 {[%clk 0:02:40]} 12. Bc3 {[%clk 0:02:23]}  Nxd3+ {[%clk 0:02:38]} 13. Qxd3 {[%clk 0:02:23]}  cxd4 {[%clk 0:02:38]} 14. Bxd4 {[%clk 0:02:22]}  Bb4+ {[%clk 0:02:35]} 15. Ke2 {[%clk 0:02:12]}  Bc5 {[%clk 0:02:32]} 16. Bxc5 {[%clk 0:02:02]}  Qxc5 {[%clk 0:02:32]} 17. Rhd1 {[%clk 0:02:02]}  O-O {[%clk 0:02:30]} 18. Qd4 {[%clk 0:02:02]}  Qb4 {[%clk 0:02:11]} 19. a3 {[%clk 0:01:55]}  Qa4 {[%clk 0:02:00]} 20. Kf1 {[%clk 0:01:38]}  b5 {[%clk 0:01:49]} 21. c5 {[%clk 0:01:36]}  Qa6 {[%clk 0:01:34]} 22. b4 {[%clk 0:01:30]}  Bb7 {[%clk 0:01:33]} 23. Ne5 {[%clk 0:01:07]}  Bd5 {[%clk 0:01:31]} 24. Kg1 {[%clk 0:00:53]}  Qb7 {[%clk 0:01:29]} 25. f3 {[%clk 0:00:53]}  Rac8 {[%clk 0:01:27]} 26. Nd3 {[%clk 0:00:48]}  Rfd8 {[%clk 0:01:21]} 27. Nf4 {[%clk 0:00:45]}  Qc6 {[%clk 0:01:16]} 28. Qe3 {[%clk 0:00:39]}  Bc4 {[%clk 0:01:15]} 29. Rd2 {[%clk 0:00:32]}  Rd7 {[%clk 0:00:53]} 30. Rad1 {[%clk 0:00:32]}  Rcd8 {[%clk 0:00:53]} 31. Rxd7 {[%clk 0:00:28]}  Rxd7 {[%clk 0:00:54]} 32. Rd4 {[%clk 0:00:28]}  f6 {[%clk 0:00:42]} 33. Nh3 {[%clk 0:00:20]}  e5 {[%clk 0:00:38]} 34. Rxd7 {[%clk 0:00:20]}  Qxd7 {[%clk 0:00:38]} 35. Nf2 {[%clk 0:00:21]}  Kf7 {[%clk 0:00:31]} 36. h4 {[%clk 0:00:21]}  h6 {[%clk 0:00:29]} 37. Ne4 {[%clk 0:00:19]}  Ke6 {[%clk 0:00:22]} 38. Nd6 {[%clk 0:00:19]}  Qc6 {[%clk 0:00:18]} 39. Kf2 {[%clk 0:00:13]}  Qd5 {[%clk 0:00:18]} 40. Qe4 {[%clk 0:00:13]}  Qd2+ {[%clk 0:00:16]} 41. Kg3 {[%clk 0:00:13]}  Bd3 {[%clk 0:00:16]} 42. Qg4+ {[%clk 0:00:11]}  Ke7 {[%clk 0:00:15]} 43. Qxg7+ {[%clk 0:00:11]}  Ke6 {[%clk 0:00:15]} 44. Qf7# {[%clk 0:00:12]} 1-0


[Site "https://www.chess.com"]

[Event "Titled Tuesday Blitz June 20 Early 2023"]
[White "Lamard, Guillaume"]
[Black "Turzo, Attila"]
[WhiteFideId "600261"]
[BlackFideId "704954"]
[WhiteElo "2413"]
[BlackElo "2520"]
[Result "1-0"]
[Round "6"]
[TimeControl "180+2"]
[Date "2023.06.20"]
[WhiteClock "0:00:10"]
[BlackClock "0:00:08"]
[Board "71"]

1. d4 {[%clk 0:03:00]}  Nf6 {[%clk 0:02:59]} 2. c4 {[%clk 0:03:01]}  g6 {[%clk 0:03:00]} 3. Nc3 {[%clk 0:03:01]}  Bg7 {[%clk 0:03:01]} 4. e4 {[%clk 0:03:01]}  d6 {[%clk 0:03:01]} 5. Be2 {[%clk 0:03:01]}  O-O {[%clk 0:03:01]} 6. h4 {[%clk 0:03:02]}  c5 {[%clk 0:02:47]} 7. d5 {[%clk 0:03:00]}  b5 {[%clk 0:02:48]} 8. cxb5 {[%clk 0:02:59]}  a6 {[%clk 0:02:48]} 9. a4 {[%clk 0:02:56]}  axb5 {[%clk 0:02:47]} 10. Bxb5 {[%clk 0:02:55]}  Ba6 {[%clk 0:02:36]} 11. Qc2 {[%clk 0:02:39]}  Bxb5 {[%clk 0:02:29]} 12. Nxb5 {[%clk 0:02:39]}  Na6 {[%clk 0:02:21]} 13. Bd2 {[%clk 0:02:38]}  e6 {[%clk 0:02:16]} 14. dxe6 {[%clk 0:02:33]}  fxe6 {[%clk 0:02:15]} 15. Nf3 {[%clk 0:02:27]}  d5 {[%clk 0:02:04]} 16. Ng5 {[%clk 0:02:13]}  Qd7 {[%clk 0:01:39]} 17. e5 {[%clk 0:02:08]}  Ng4 {[%clk 0:01:29]} 18. f4 {[%clk 0:02:07]}  d4 {[%clk 0:01:18]} 19. Qc4 {[%clk 0:02:02]}  Rfe8 {[%clk 0:00:51]} 20. O-O {[%clk 0:01:58]}  Qd5 {[%clk 0:00:46]} 21. b3 {[%clk 0:01:23]}  h6 {[%clk 0:00:39]} 22. Nf3 {[%clk 0:01:20]}  Bf8 {[%clk 0:00:32]} 23. Nh2 {[%clk 0:01:11]}  Nxh2 {[%clk 0:00:23]} 24. Kxh2 {[%clk 0:01:11]}  Qe4 {[%clk 0:00:17]} 25. Rae1 {[%clk 0:01:09]}  Qf5 {[%clk 0:00:16]} 26. Qe2 {[%clk 0:01:04]}  h5 {[%clk 0:00:16]} 27. Qe4 {[%clk 0:01:00]}  Be7 {[%clk 0:00:15]} 28. g3 {[%clk 0:00:58]}  Qxe4 {[%clk 0:00:15]} 29. Rxe4 {[%clk 0:00:56]}  Rec8 {[%clk 0:00:15]} 30. Rc1 {[%clk 0:00:56]}  Nc7 {[%clk 0:00:15]} 31. Nd6 {[%clk 0:00:50]}  Rd8 {[%clk 0:00:13]} 32. Nc4 {[%clk 0:00:49]}  Nd5 {[%clk 0:00:13]} 33. Rb1 {[%clk 0:00:37]}  Rdb8 {[%clk 0:00:13]} 34. Ree1 {[%clk 0:00:36]}  Rb7 {[%clk 0:00:14]} 35. Na5 {[%clk 0:00:36]}  Rb6 {[%clk 0:00:13]} 36. Kg2 {[%clk 0:00:35]}  Rab8 {[%clk 0:00:13]} 37. Kf3 {[%clk 0:00:34]}  Kf7 {[%clk 0:00:13]} 38. Ke4 {[%clk 0:00:33]}  Ke8 {[%clk 0:00:13]} 39. Kd3 {[%clk 0:00:34]}  Kd7 {[%clk 0:00:14]} 40. Rec1 {[%clk 0:00:30]}  Nb4+ {[%clk 0:00:13]} 41. Bxb4 {[%clk 0:00:29]}  Rxb4 {[%clk 0:00:14]} 42. Kc2 {[%clk 0:00:24]}  Bd8 {[%clk 0:00:14]} 43. Nc4 {[%clk 0:00:24]}  Be7 {[%clk 0:00:13]} 44. Rd1 {[%clk 0:00:25]}  R8b7 {[%clk 0:00:13]} 45. Rd3 {[%clk 0:00:21]}  Rb8 {[%clk 0:00:13]} 46. Ra1 {[%clk 0:00:18]}  Kc6 {[%clk 0:00:13]} 47. a5 {[%clk 0:00:19]}  Ra8 {[%clk 0:00:12]} 48. Ra2 {[%clk 0:00:17]}  Bd8 {[%clk 0:00:12]} 49. Rd1 {[%clk 0:00:16]}  Bc7 {[%clk 0:00:12]} 50. Rda1 {[%clk 0:00:16]}  Ra6 {[%clk 0:00:13]} 51. Ra4 {[%clk 0:00:16]}  Kb5 {[%clk 0:00:12]} 52. R4a2 {[%clk 0:00:14]}  Kc6 {[%clk 0:00:11]} 53. Ra3 {[%clk 0:00:14]}  Kb5 {[%clk 0:00:11]} 54. Kd3 {[%clk 0:00:15]}  Bd8 {[%clk 0:00:10]} 55. Ke4 {[%clk 0:00:15]}  Bc7 {[%clk 0:00:10]} 56. Kf3 {[%clk 0:00:15]}  Kc6 {[%clk 0:00:10]} 57. g4 {[%clk 0:00:16]}  hxg4+ {[%clk 0:00:10]} 58. Kxg4 {[%clk 0:00:17]}  Kd5 {[%clk 0:00:11]} 59. Nd2 {[%clk 0:00:13]}  d3 {[%clk 0:00:10]} 60. Nc4 {[%clk 0:00:11]}  Kd4 {[%clk 0:00:10]} 61. Kf3 {[%clk 0:00:11]}  Kc3 {[%clk 0:00:10]} 62. Rc1+ {[%clk 0:00:09]}  Kd4 {[%clk 0:00:10]} 63. Rd1 {[%clk 0:00:08]}  Kc3 {[%clk 0:00:10]} 64. Ke4 {[%clk 0:00:08]}  Rxb3 {[%clk 0:00:08]} 65. Rxd3+ {[%clk 0:00:06]}  Kxc4 {[%clk 0:00:09]} 66. Rdxb3 {[%clk 0:00:07]}  Bxa5 {[%clk 0:00:08]} 67. Rb1 {[%clk 0:00:07]}  Ra7 {[%clk 0:00:07]} 68. Ra4+ {[%clk 0:00:07]}  Kc3 {[%clk 0:00:07]} 69. Rba1 {[%clk 0:00:07]}  Rh7 {[%clk 0:00:05]} 70. Rxa5 {[%clk 0:00:07]}  Rxh4 {[%clk 0:00:05]} 71. R5a3+ {[%clk 0:00:07]}  Kb4 {[%clk 0:00:06]} 72. Ra4+ {[%clk 0:00:07]}  Kb5 {[%clk 0:00:06]} 73. Ra5+ {[%clk 0:00:08]}  Kb4 {[%clk 0:00:06]} 74. Ra6 {[%clk 0:00:08]}  c4 {[%clk 0:00:06]} 75. Rxe6 {[%clk 0:00:09]}  Kc3 {[%clk 0:00:06]} 76. Rc6 {[%clk 0:00:09]}  Rh2 {[%clk 0:00:06]} 77. Ra4 {[%clk 0:00:09]}  Re2+ {[%clk 0:00:06]} 78. Kd5 {[%clk 0:00:09]}  Rd2+ {[%clk 0:00:06]} 79. Ke6 {[%clk 0:00:10]}  Rd4 {[%clk 0:00:06]} 80. Raxc4+ {[%clk 0:00:09]}  Rxc4 {[%clk 0:00:06]} 81. Rxc4+ {[%clk 0:00:10]}  Kxc4 {[%clk 0:00:07]} 82. Kf6 {[%clk 0:00:09]}  Kd5 {[%clk 0:00:08]} 83. e6 {[%clk 0:00:10]}  Ke4 {[%clk 0:00:08]} 84. e7 {[%clk 0:00:10]}  Kxf4 {[%clk 0:00:09]} 85. e8=Q {[%clk 0:00:11]}  g5 {[%clk 0:00:09]} 86. Qh5 {[%clk 0:00:11]}  g4 {[%clk 0:00:10]} 87. Qh4 {[%clk 0:00:11]}  Kf3 {[%clk 0:00:10]} 88. Qh1+ {[%clk 0:00:10]}  Kf2 {[%clk 0:00:10]} 89. Qh4+ {[%clk 0:00:11]}  Kf3 {[%clk 0:00:10]} 90. Kf5 {[%clk 0:00:11]}  g3 {[%clk 0:00:11]} 91. Qf4+ {[%clk 0:00:11]}  Kg2 {[%clk 0:00:11]} 92. Kg4 {[%clk 0:00:11]}  Kh1 {[%clk 0:00:11]} 93. Kh3 {[%clk 0:00:10]}  Kg1 {[%clk 0:00:08]} 94. Qxg3+ {[%clk 0:00:10]} 1-0


[Site "https://www.chess.com"]

[Event "Titled Tuesday Blitz June 20 Early 2023"]
[White "Camilla_Lee"]
[Black "Fus, Jakub"]
[BlackFideId "1193023"]
[WhiteElo "2519"]
[BlackElo "2335"]
[Result "1/2-1/2"]
[Round "6"]
[TimeControl "180+2"]
[Date "2023.06.20"]
[WhiteClock "0:00:29"]
[BlackClock "0:00:30"]
[Board "72"]

1. e4 {[%clk 0:03:00]}  e5 {[%clk 0:02:54]} 2. Nf3 {[%clk 0:03:00]}  Nc6 {[%clk 0:02:54]} 3. Nc3 {[%clk 0:03:00]}  Nf6 {[%clk 0:02:54]} 4. d4 {[%clk 0:03:01]}  exd4 {[%clk 0:02:54]} 5. Nd5 {[%clk 0:03:01]}  Nb4 {[%clk 0:02:45]} 6. Bc4 {[%clk 0:03:01]}  Nbxd5 {[%clk 0:02:43]} 7. exd5 {[%clk 0:03:01]}  Bb4+ {[%clk 0:02:43]} 8. Bd2 {[%clk 0:03:01]}  Bxd2+ {[%clk 0:02:41]} 9. Qxd2 {[%clk 0:02:57]}  O-O {[%clk 0:02:42]} 10. O-O {[%clk 0:02:53]}  d6 {[%clk 0:02:41]} 11. Nxd4 {[%clk 0:02:51]}  Re8 {[%clk 0:02:31]} 12. h3 {[%clk 0:02:40]}  Bd7 {[%clk 0:02:17]} 13. Rfe1 {[%clk 0:02:38]}  h6 {[%clk 0:02:12]} 14. Rxe8+ {[%clk 0:02:36]}  Qxe8 {[%clk 0:02:11]} 15. Re1 {[%clk 0:02:36]}  Qf8 {[%clk 0:02:12]} 16. Bb5 {[%clk 0:02:23]}  Re8 {[%clk 0:02:06]} 17. Bxd7 {[%clk 0:02:19]}  Nxd7 {[%clk 0:02:07]} 18. Nb5 {[%clk 0:02:16]}  Rxe1+ {[%clk 0:01:13]} 19. Qxe1 {[%clk 0:02:17]}  Qd8 {[%clk 0:01:12]} 20. Nxa7 {[%clk 0:01:09]}  Nf6 {[%clk 0:00:56]} 21. c4 {[%clk 0:01:05]}  Qa8 {[%clk 0:00:56]} 22. Qa5 {[%clk 0:01:01]}  Ne4 {[%clk 0:00:52]} 23. Qxc7 {[%clk 0:00:53]}  Qxa7 {[%clk 0:00:42]} 24. Qc8+ {[%clk 0:00:54]}  Kh7 {[%clk 0:00:39]} 25. Qf5+ {[%clk 0:00:55]}  Kg8 {[%clk 0:00:39]} 26. Qxe4 {[%clk 0:00:55]}  Qxa2 {[%clk 0:00:37]} 27. Qe8+ {[%clk 0:00:42]}  Kh7 {[%clk 0:00:37]} 28. Qxf7 {[%clk 0:00:41]}  Qxb2 {[%clk 0:00:36]} 29. Qf5+ {[%clk 0:00:40]}  Kh8 {[%clk 0:00:31]} 30. Qe6 {[%clk 0:00:34]}  Qc1+ {[%clk 0:00:29]} 31. Kh2 {[%clk 0:00:31]}  Qf4+ {[%clk 0:00:29]} 32. Kg1 {[%clk 0:00:29]}  Qc1+ {[%clk 0:00:29]} 33. Kh2 {[%clk 0:00:29]}  Qf4+ {[%clk 0:00:30]} 34. Kg1 {[%clk 0:00:29]}  Qc1+ {[%clk 0:00:30]} 1/2-1/2


[Site "https://www.chess.com"]

[Event "Titled Tuesday Blitz June 20 Early 2023"]
[White "Zaragatski, Ilja"]
[Black "Martinez Ramirez, Lennis"]
[WhiteFideId "4655192"]
[BlackFideId "3509079"]
[WhiteElo "2460"]
[BlackElo "2410"]
[Result "1-0"]
[Round "6"]
[TimeControl "180+2"]
[Date "2023.06.20"]
[WhiteClock "0:00:08"]
[BlackClock "0:00:00"]
[Board "73"]

1. c4 {[%clk 0:03:00]}  e5 {[%clk 0:02:59]} 2. g3 {[%clk 0:03:00]}  Nf6 {[%clk 0:03:00]} 3. Bg2 {[%clk 0:03:00]}  c6 {[%clk 0:03:00]} 4. d4 {[%clk 0:02:57]}  exd4 {[%clk 0:03:00]} 5. Qxd4 {[%clk 0:02:58]}  d5 {[%clk 0:03:00]} 6. Nf3 {[%clk 0:02:57]}  dxc4 {[%clk 0:03:01]} 7. Qxc4 {[%clk 0:02:46]}  Be6 {[%clk 0:03:00]} 8. Qc2 {[%clk 0:02:44]}  h6 {[%clk 0:02:42]} 9. O-O {[%clk 0:02:43]}  Nbd7 {[%clk 0:02:42]} 10. Nd4 {[%clk 0:02:40]}  Qe7 {[%clk 0:02:30]} 11. Nc3 {[%clk 0:02:31]}  g6 {[%clk 0:02:27]} 12. e4 {[%clk 0:02:19]}  Bg7 {[%clk 0:02:26]} 13. f4 {[%clk 0:02:19]}  Bc4 {[%clk 0:02:25]} 14. Rd1 {[%clk 0:02:15]}  Rd8 {[%clk 0:01:37]} 15. e5 {[%clk 0:02:07]}  Ng4 {[%clk 0:01:29]} 16. Ne4 {[%clk 0:02:07]}  Ndxe5 {[%clk 0:01:27]} 17. fxe5 {[%clk 0:02:04]}  Nxe5 {[%clk 0:01:24]} 18. Bf4 {[%clk 0:01:11]}  Bd3 {[%clk 0:00:53]} 19. Rxd3 {[%clk 0:01:02]}  Nxd3 {[%clk 0:00:52]} 20. Nxc6 {[%clk 0:00:42]}  bxc6 {[%clk 0:00:41]} 21. Qxc6+ {[%clk 0:00:43]}  Kf8 {[%clk 0:00:39]} 22. Bd6 {[%clk 0:00:37]}  Rxd6 {[%clk 0:00:39]} 23. Qxd6 {[%clk 0:00:38]}  Qxd6 {[%clk 0:00:38]} 24. Nxd6 {[%clk 0:00:39]}  Nxb2 {[%clk 0:00:33]} 25. Re1 {[%clk 0:00:37]}  Bd4+ {[%clk 0:00:32]} 26. Kf1 {[%clk 0:00:36]}  Kg7 {[%clk 0:00:32]} 27. Re7 {[%clk 0:00:35]}  Rd8 {[%clk 0:00:28]} 28. Rxf7+ {[%clk 0:00:23]}  Kg8 {[%clk 0:00:27]} 29. Nb7 {[%clk 0:00:22]}  Kxf7 {[%clk 0:00:18]} 30. Nxd8+ {[%clk 0:00:22]}  Kf6 {[%clk 0:00:19]} 31. Ke2 {[%clk 0:00:20]}  Bb6 {[%clk 0:00:18]} 32. Nc6 {[%clk 0:00:17]}  Na4 {[%clk 0:00:18]} 33. Kd3 {[%clk 0:00:14]}  Nc5+ {[%clk 0:00:19]} 34. Kc4 {[%clk 0:00:13]}  Ne6 {[%clk 0:00:20]} 35. a4 {[%clk 0:00:13]}  h5 {[%clk 0:00:20]} 36. a5 {[%clk 0:00:13]}  Bg1 {[%clk 0:00:20]} 37. h3 {[%clk 0:00:13]}  g5 {[%clk 0:00:16]} 38. Kb5 {[%clk 0:00:13]}  Bf2 {[%clk 0:00:13]} 39. g4 {[%clk 0:00:12]}  h4 {[%clk 0:00:13]} 40. Ka6 {[%clk 0:00:11]}  Nc7+ {[%clk 0:00:10]} 41. Kb7 {[%clk 0:00:10]}  Nb5 {[%clk 0:00:10]} 42. Bf1 {[%clk 0:00:09]}  Nd6+ {[%clk 0:00:08]} 43. Kb8 {[%clk 0:00:09]}  Ne8 {[%clk 0:00:01]} 44. Nxa7 {[%clk 0:00:09]}  Ke6 {[%clk 0:00:00]} 45. a6 {[%clk 0:00:08]} 1-0


[Site "https://www.chess.com"]